fUST/lending_fUST_20240518
["ID","MTS","AMOUNT","RATE_DAILY","PERIOD"]
[327293732,1715969444372,-500.0,0.00018082,2]
[327293735,1715969444383,-500.0,0.00018082,2]
[327293738,1715969444393,-500.0,0.00018082,2]
[327293741,1715969444403,-500.0,0.00018082,2]
[327293743,1715969444413,-807.36,0.00018082,2]
[327293746,1715969444428,-1120.65,0.00018082,2]
[327293748,1715969444438,-500.0,0.00018082,2]
[327293750,1715969444448,-500.0,0.00018082,2]
[327293752,1715969444458,-840.84,0.00018082,2]
[327293754,1715969444472,-500.0,0.00018082,2]
[327293756,1715969444482,-500.0,0.00018082,2]
[327293758,1715969444492,-1247.43,0.00018082,2]
[327293760,1715969444503,-267.37436494,0.00018186,7]
[327293762,1715969444515,-495.0,0.00018264,2]
[327293764,1715969444525,-150.0,0.00018264,2]
[327293766,1715969444536,-724.06,0.00018356,4]
[327293768,1715969444547,-500.0,0.00018356,2]
[327293787,1715969444712,-500.0,0.00018356,2]
[327293789,1715969444721,-500.0,0.00018356,2]
[327293791,1715969444731,-500.0,0.00018356,2]
[327293793,1715969444741,-500.0,0.00018356,2]
[327293795,1715969444751,-807.36,0.00018356,2]
[327293797,1715969444760,-1120.65,0.00018356,2]
[327293799,1715969444769,-500.0,0.00018356,2]
[327293801,1715969444779,-500.0,0.00018356,2]
[327293803,1715969444789,-840.84,0.00018356,2]
[327293805,1715969444798,-500.0,0.00018356,2]
[327293807,1715969444807,-432.05,0.00018356,2]
[327293809,1715969444816,-1247.43,0.00018356,2]
[327293811,1715969444826,-207.2,0.00018437,2]
[327293813,1715969444835,-1237.29190451,0.000185,2]
[327293815,1715969444844,-502.94008063,0.0001863,4]
[327293818,1715969444862,-221.11991937,0.0001863,4]
[327293820,1715969444871,-500.0,0.0001863,2]
[327293822,1715969444880,-500.0,0.0001863,2]
[327293824,1715969444890,-604.30982017,0.0001863,2]
[327293826,1715969444899,-171.43026042,0.0001863,2]
[327293828,1715969444910,-328.56973958,0.0001863,2]
[327293830,1715969444919,-172.7694333,0.0001863,2]
[327293834,1715969444950,-327.2305667,0.0001863,2]
[327293836,1715969444959,-807.36,0.0001863,2]
[327293838,1715969444968,-64.0144333,0.0001863,2]
[327293841,1715969444991,-1056.6355667,0.0001863,2]
[327293843,1715969445001,-500.0,0.0001863,2]
[327293845,1715969445011,-500.0,0.0001863,2]
[327293847,1715969445021,-840.84,0.0001863,2]
[327293849,1715969445031,-500.0,0.0001863,2]
[327293851,1715969445040,-1247.43,0.0001863,2]
[327293853,1715969445050,-3262.22315009,0.000189,2]
[327293855,1715969445059,-724.06,0.00018904,4]
[327293857,1715969445069,-500.0,0.00018904,2]
[327293859,1715969445078,-456.17,0.00018904,2]
[327293861,1715969445087,-500.0,0.00018904,2]
[327293863,1715969445096,-500.0,0.00018904,2]
[327293865,1715969445105,-807.36,0.00018904,2]
[327293867,1715969445114,-1120.65,0.00018904,2]
[327293869,1715969445123,-500.0,0.00018904,2]
[327293871,1715969445132,-500.0,0.00018904,2]
[327293873,1715969445142,-840.84,0.00018904,2]
[327293875,1715969445151,-500.0,0.00018904,2]
[327293877,1715969445160,-1247.43,0.00018904,2]
[327293879,1715969445170,-500.0,0.00018917,2]
[327293881,1715969445181,-4221.46001999,0.00018959,2]
[327293883,1715969445191,-435.0,0.00019,2]
[327293885,1715969445199,-154.73694719,0.00019,2]
[327293887,1715969445209,-416.98047207,0.00019016,2]
[327293889,1715969445217,-276.0,0.00019077,2]
[327293891,1715969445227,-689.90178801,0.00019099,2]
[327293893,1715969445236,-189.86799103,0.00019099,2]
[327293895,1715969445245,-170.0,0.0001911,2]
[327293897,1715969445255,-150.909,0.00019165,2]
[327293898,1715969445263,-250.0,0.00019165,2]
[327293900,1715969445273,-207.2,0.00019166,2]
[327293902,1715969445282,-1291.21785505,0.00019173,2]
[327293904,1715969445291,-1520.82875704,0.00019177,2]
[327293906,1715969445301,-500.0,0.00019177,2]
[327293908,1715969445310,-500.0,0.00019177,2]
[327293910,1715969445319,-500.0,0.00019177,2]
[327293912,1715969445329,-500.0,0.00019177,2]
[327293914,1715969445338,-500.0,0.00019177,2]
[327293916,1715969445347,-500.0,0.00019177,2]
[327293918,1715969445357,-429.43560521,0.00019177,2]
[327293920,1715969445366,-541.9957498,0.00019178,2]
[327293922,1715969445375,-787.23024306,0.00019178,2]
[327293924,1715969445384,-787.23024306,0.00019178,2]
[327293926,1715969445393,-787.23024306,0.00019178,2]
[327293928,1715969445403,-787.23024306,0.00019178,2]
[327293930,1715969445412,-787.23024306,0.00019178,2]
[327293932,1715969445424,-787.23024306,0.00019178,2]
[327293934,1715969445433,-787.23024306,0.00019178,2]
[327293936,1715969445442,-787.23024306,0.00019178,2]
[327293938,1715969445451,-787.23024306,0.00019178,2]
[327293939,1715969445459,-787.23024306,0.00019178,2]
[327293941,1715969445469,-787.23024306,0.00019178,2]
[327293943,1715969445481,-787.23024306,0.00019178,2]
[327293945,1715969445490,-787.23024306,0.00019178,2]
[327293947,1715969445499,-787.23024306,0.00019178,2]
[327293949,1715969445508,-787.23024306,0.00019178,2]
[327293951,1715969445518,-787.23024306,0.00019178,2]
[327293953,1715969445527,-787.23024306,0.00019178,2]
[327293955,1715969445536,-787.23024306,0.00019178,2]
[327293957,1715969445545,-787.23024306,0.00019178,2]
[327293959,1715969445556,-787.23024306,0.00019178,2]
[327293961,1715969445565,-787.23024306,0.00019178,2]
[327293963,1715969445574,-787.23024306,0.00019178,2]
[327293965,1715969445583,-787.23024306,0.00019178,2]
[327293967,1715969445592,-787.23024306,0.00019178,2]
[327293969,1715969445601,-787.23024306,0.00019178,2]
[327293971,1715969445610,-787.23024306,0.00019178,2]
[327293973,1715969445619,-787.23024306,0.00019178,2]
[327293975,1715969445629,-787.23024306,0.00019178,2]
[327293977,1715969445638,-787.23024306,0.00019178,2]
[327293979,1715969445647,-787.23024306,0.00019178,2]
[327293981,1715969445656,-787.23024306,0.00019178,2]
[327293983,1715969445665,-157.71717594,0.00019178,2]
[327293985,1715969445678,-500.0,0.00019178,2]
[327293987,1715969445687,-300.1353814,0.00019178,2]
[327293988,1715969445696,-500.0,0.00019178,2]
[327293990,1715969445706,-500.0,0.00019178,2]
[327293992,1715969445714,-500.0,0.00019178,2]
[327293994,1715969445723,-500.0,0.00019178,2]
[327293996,1715969445733,-500.0,0.00019178,2]
[327293998,1715969445742,-500.0,0.00019178,2]
[327294000,1715969445751,-500.0,0.00019178,2]
[327294002,1715969445760,-500.0,0.00019178,2]
[327294004,1715969445770,-500.0,0.00019178,2]
[327294006,1715969445780,-500.0,0.00019178,2]
[327294008,1715969445789,-270.9498012,0.00019178,2]
[327294011,1715969445803,-229.0501988,0.00019178,2]
[327294013,1715969445812,-78.24980121,0.00019178,2]
[327294026,1715969445934,2008.40132134,9.999e-05,2]
[327294029,1715969445951,-500.0,0.00016438,2]
[327294031,1715969445960,-500.0,0.00016712,2]
[327294033,1715969445969,-150.0,0.00016978,3]
[327294035,1715969445980,-150.0,0.00016978,2]
[327294037,1715969445990,-500.0,0.00016986,2]
[327294039,1715969445999,-421.75019879,0.00019178,2]
[327294041,1715969446008,-500.0,0.00019178,2]
[327294043,1715969446017,-475.85810697,0.00019178,2]
[327294045,1715969446026,-500.0,0.00019178,2]
[327294047,1715969446035,-500.0,0.00019178,2]
[327294049,1715969446044,-500.0,0.00019178,2]
[327294051,1715969446053,-500.0,0.00019178,2]
[327294053,1715969446062,-500.0,0.00019178,2]
[327294055,1715969446072,-500.0,0.00019178,2]
[327294057,1715969446080,-500.0,0.00019178,2]
[327294059,1715969446089,-500.0,0.00019178,2]
[327294061,1715969446098,-500.0,0.00019178,2]
[327294063,1715969446107,-500.0,0.00019178,2]
[327294064,1715969446117,-500.0,0.00019178,2]
[327294066,1715969446126,-500.0,0.00019178,2]
[327294068,1715969446135,-500.0,0.00019178,2]
[327294070,1715969446145,-500.0,0.00019178,2]
[327294072,1715969446154,-500.0,0.00019178,2]
[327294075,1715969446163,-500.0,0.00019178,2]
[327294076,1715969446176,-471.68734348,0.00019178,2]
[327294078,1715969446185,-500.0,0.00019178,2]
[327294080,1715969446194,-500.0,0.00019178,2]
[327294082,1715969446203,-500.0,0.00019178,2]
[327294085,1715969446213,-500.0,0.00019178,2]
[327294087,1715969446223,-500.0,0.00019178,2]
[327294089,1715969446232,-500.0,0.00019178,2]
[327294091,1715969446241,-187.14174513,0.00019178,2]
[327294153,1715969446639,-392.1959995,0.00016438,2]
[327294156,1715969446654,-238.14223274,0.00016438,2]
[327294158,1715969446663,-537.93709329,0.00016438,2]
[327294160,1715969446674,-312.85825487,0.00019178,2]
[327294162,1715969446683,-500.0,0.00019178,2]
[327294164,1715969446692,-500.0,0.00019178,2]
[327294165,1715969446702,-500.0,0.00019178,2]
[327294168,1715969446712,-405.56438673,0.00019178,2]
[327294178,1715969446801,-94.43561327,0.00019178,2]
[327294180,1715969446810,-500.0,0.00019178,2]
[327294182,1715969446819,-500.0,0.00019178,2]
[327294184,1715969446828,-500.0,0.00019178,2]
[327294186,1715969446837,-254.00318035,0.00019178,2]
[327294188,1715969446849,-245.99681965,0.00019178,2]
[327294190,1715969446858,-215.20432417,0.00019178,2]
[327294203,1715969446977,-487.25,0.00016438,2]
[327294206,1715969446989,-12.75,0.00016438,2]
[327294208,1715969446998,-500.0,0.00016712,2]
[327294210,1715969447007,-199.25,0.00019178,2]
[327294212,1715969447019,-85.54567583,0.00019178,2]
[327294214,1715969447029,-500.0,0.00019178,2]
[327294216,1715969447038,-500.0,0.00019178,2]
[327294218,1715969447048,-500.0,0.00019178,2]
[327294220,1715969447057,-500.0,0.00019178,2]
[327294222,1715969447066,-500.0,0.00019178,2]
[327294224,1715969447075,-500.0,0.00019178,2]
[327294226,1715969447084,-500.0,0.00019178,2]
[327294228,1715969447093,-500.0,0.00019178,2]
[327294230,1715969447102,-500.0,0.00019178,2]
[327294231,1715969447112,-500.0,0.00019178,2]
[327294233,1715969447121,-500.0,0.00019178,2]
[327294235,1715969447130,-500.0,0.00019178,2]
[327294237,1715969447139,-500.0,0.00019178,2]
[327294239,1715969447148,-357.906652,0.00019178,2]
[327294241,1715969447158,-5024.26561628,0.00019178,2]
[327294243,1715969447167,-500.0,0.00019178,2]
[327294245,1715969447179,-5024.26561628,0.00019178,2]
[327294247,1715969447188,-500.0,0.00019178,2]
[327294249,1715969447197,-500.0,0.00019178,2]
[327294251,1715969447206,-1536.51643878,0.00019178,2]
[327295235,1715969506210,267.37436494,0.00016436,7]
[327295236,1715969545403,273.37336231,9.9e-05,2]
[327295237,1715969617347,835.37838863,9.999e-05,2]
[327295239,1715969705402,381.48,0.0002655,120]
[327295241,1715970096648,9558.14823448,9.999e-05,2]
[327295242,1715970118363,719.86717686,9.999e-05,2]
[327295243,1715970123743,1450.2482319,0.0001,2]
[327295246,1715970418300,-1885.21166206,0.00014319,2]
[327295247,1715970436181,-362.44648882,0.00014318,2]
[327295248,1715970436205,-1176.83809078,0.00014319,2]
[327295249,1715970436228,-603.34601586,0.0001432,2]
[327295250,1715970453088,-1774.23832004,0.00014326,2]
[327295251,1715970453108,-359.39826424,0.00014332,2]
[327295252,1715970453128,-376.92681372,0.00014398,2]
[327295253,1715970454086,-5537.60700728,0.00014398,2]
[327295267,1715970525912,835.37838863,9.999e-05,2]
[327295269,1715970546112,-1978.7004679,0.00014398,2]
[327295270,1715970546132,-184.59951435,0.00014399,2]
[327295271,1715970546151,-236.33764283,0.00014399,2]
[327295272,1715970546171,-718.44809917,0.00014399,2]
[327295273,1715970546192,-520.9064556,0.00014399,2]
[327295274,1715970546212,-3210.76956172,0.00014399,2]
[327295275,1715970546232,-2278.42231276,0.00014399,2]
[327295276,1715970546251,-214.28306796,0.000144,2]
[327295277,1715970546270,-155.00461033,0.000144,2]
[327295278,1715970546291,-544.85515202,0.000144,2]
[327295279,1715970546312,-24900.0,0.00014401,2]
[327295280,1715970546332,-525.68147,0.00014426,2]
[327295281,1715970577705,2217.96164536,0.00014194,2]
[327295282,1715970577727,3712.9358,0.00014194,2]
[327295283,1715970577747,3755.26195546,0.00014194,2]
[327295284,1715970577768,3768.00755709,0.00014194,2]
[327295285,1715970577789,3814.19,0.00014194,2]
[327295286,1715970577809,2186.0095279,0.00014194,2]
[327295340,1715970632168,-1110.81206292,0.00014193,2]
[327295342,1715970632180,-33566.32360681,0.00014193,2]
[327295344,1715970632189,-5445.63351419,0.00014194,2]
[327295345,1715970632199,-423.91101872,0.00014899,2]
[327295347,1715970632208,-412.65183687,0.000149,2]
[327295349,1715970632217,-5994.83577603,0.00014999,2]
[327295351,1715970632226,-71724.23218916,0.00015,2]
[327295451,1715970638258,-1552.45853,0.00014094,2]
[327295452,1715970638268,-8275.76781084,0.00015,2]
[327295453,1715970638277,-2795.18883811,0.00015,2]
[327295454,1715970638287,-1682.5168572,0.00015,2]
[327295455,1715970638298,-942.40757179,0.00015,2]
[327295456,1715970638307,-412.65183684,0.0001526,2]
[327295457,1715970638316,-1885.19395395,0.0001545,2]
[327295458,1715970638325,-155.40164816,0.0001545,2]
[327295459,1715970638335,-1148.90229176,0.0001545,2]
[327295460,1715970638344,-297.75809624,0.0001545,2]
[327295461,1715970638354,-194.42788305,0.00015451,2]
[327295462,1715970638363,-341.03127753,0.00015451,2]
[327295463,1715970638372,-412.65183684,0.00015619,2]
[327295464,1715970638382,-412.65183684,0.00015979,2]
[327295465,1715970638392,-7966.29275223,0.00016,2]
[327295466,1715970638401,-5019.36336665,0.00016,2]
[327295467,1715970638410,-412.65183684,0.00016338,2]
[327295468,1715970638420,-2000.0,0.00016338,2]
[327295469,1715970638430,-309.57169656,0.00016434,2]
[327295470,1715970638439,-1628.73941049,0.00016435,2]
[327295471,1715970638450,-904.23695715,0.00016436,2]
[327295472,1715970638459,-547.43770617,0.00016436,2]
[327295473,1715970638468,-155.10301726,0.00016436,2]
[327295474,1715970638478,-1015.70905988,0.00016436,2]
[327295475,1715970638487,-438.93395454,0.00016436,2]
[327295476,1715970638496,-300.0,0.00016436,2]
[327295477,1715970638507,-1056.92606583,0.00016436,2]
[327295478,1715970638517,-155.22983648,0.00016436,2]
[327295479,1715970638527,-412.83760204,0.00016436,2]
[327295480,1715970638536,-274.06127125,0.00016436,2]
[327295481,1715970638546,-1493.78708353,0.00016436,2]
[327295482,1715970638557,-1422.81689669,0.00016436,2]
[327295483,1715970638566,-1578.19645453,0.00016436,2]
[327295484,1715970638576,-1334.39893068,0.00016436,2]
[327295485,1715970638585,-255.40019025,0.00016437,2]
[327295486,1715970638595,-4193.28484721,0.00016438,3]
[327295487,1715970638604,-500.69722533,0.00016438,2]
[327295488,1715970638614,-531.82153831,0.00016438,2]
[327295489,1715970638623,-500.0,0.00016438,2]
[327295490,1715970638634,-500.0,0.00016438,2]
[327295491,1715970638643,-569.65179403,0.00016438,2]
[327295492,1715970638653,-500.0,0.00016438,2]
[327295493,1715970638662,-500.0,0.00016438,2]
[327295494,1715970638672,-500.0,0.00016438,2]
[327295495,1715970638681,-500.0,0.00016438,2]
[327295496,1715970638691,-500.94154903,0.00016438,2]
[327295497,1715970638703,-500.0,0.00016438,2]
[327295498,1715970638713,-502.20593887,0.00016438,2]
[327295499,1715970638723,-500.0,0.00016438,2]
[327295500,1715970638733,-500.0,0.00016438,2]
[327295501,1715970638742,-500.0,0.00016438,2]
[327295502,1715970638752,-502.09119767,0.00016438,2]
[327295503,1715970638762,-500.0,0.00016438,2]
[327295504,1715970638771,-500.0,0.00016438,2]
[327295505,1715970638781,-500.0,0.00016438,2]
[327295506,1715970638790,-500.0,0.00016438,2]
[327295507,1715970638799,-496.33271539,0.00016438,2]
[327295508,1715970638808,-500.0,0.00016438,2]
[327295509,1715970638818,-502.52218532,0.00016438,2]
[327295510,1715970638828,-500.0,0.00016438,2]
[327295511,1715970638838,-501.06667719,0.00016438,2]
[327295512,1715970638850,-500.79962334,0.00016438,2]
[327295513,1715970638859,-502.06905261,0.00016438,2]
[327295514,1715970638870,-500.90492189,0.00016438,2]
[327295515,1715970638879,-500.0,0.00016438,2]
[327295516,1715970638889,-247.51575734,0.00016438,2]
[327295517,1715970638899,-246.07250585,0.00016438,2]
[327295518,1715970638907,-500.0,0.00016438,2]
[327295519,1715970638919,-500.0,0.00016438,2]
[327295520,1715970638928,-268.35997529,0.00016438,2]
[327295521,1715970638937,-501.3802005,0.00016438,2]
[327295522,1715970638948,-500.0,0.00016438,2]
[327295523,1715970638957,-549.2543388,0.00016438,2]
[327295524,1715970638966,-500.0,0.00016438,2]
[327295525,1715970638976,-500.0,0.00016438,2]
[327295526,1715970638985,-500.0,0.00016438,2]
[327295527,1715970638994,-500.0,0.00016438,2]
[327295528,1715970639003,-500.69953264,0.00016438,2]
[327295529,1715970639013,-500.0,0.00016438,2]
[327295530,1715970639022,-500.0,0.00016438,2]
[327295531,1715970639032,-500.9333789,0.00016438,2]
[327295532,1715970639041,-500.0,0.00016438,2]
[327295533,1715970639051,-500.0,0.00016438,2]
[327295534,1715970639060,-500.0,0.00016438,2]
[327295535,1715970639070,-500.0,0.00016438,2]
[327295536,1715970639081,-500.0,0.00016438,2]
[327295537,1715970639090,-502.39628546,0.00016438,2]
[327295538,1715970639100,-502.35738942,0.00016438,2]
[327295539,1715970639109,-501.63264309,0.00016438,2]
[327295540,1715970639119,-500.0,0.00016438,2]
[327295541,1715970639129,-500.0,0.00016438,2]
[327295542,1715970639139,-500.0,0.00016438,2]
[327295543,1715970639148,-501.74924601,0.00016438,2]
[327295544,1715970639158,-501.78493775,0.00016438,2]
[327295545,1715970639167,-500.0,0.00016438,2]
[327295546,1715970639177,-500.0,0.00016438,2]
[327295547,1715970639187,-500.0,0.00016438,2]
[327295548,1715970639197,-500.0,0.00016438,2]
[327295549,1715970639207,-500.0,0.00016438,2]
[327295550,1715970639217,-500.0,0.00016438,2]
[327295551,1715970639227,-500.0,0.00016438,2]
[327295552,1715970639236,-500.0,0.00016438,2]
[327295553,1715970639246,-500.0,0.00016438,2]
[327295554,1715970639256,-501.37872881,0.00016438,2]
[327295555,1715970639266,-500.0,0.00016438,2]
[327295556,1715970639275,-158.21638616,0.00016438,2]
[327295557,1715970639285,-500.0,0.00016438,2]
[327295558,1715970639295,-500.0,0.00016438,2]
[327295559,1715970639305,-500.0,0.00016438,2]
[327295560,1715970639314,-500.0,0.00016438,2]
[327295561,1715970639324,-500.0,0.00016438,2]
[327295562,1715970639333,-206.75056341,0.00016438,2]
[327295563,1715970639343,-501.10201678,0.00016438,2]
[327295564,1715970639353,-501.84372558,0.00016438,2]
[327295565,1715970639363,-502.33216634,0.00016438,2]
[327295566,1715970639372,-543.09779564,0.00016438,2]
[327295567,1715970639381,-151.0,0.00016438,2]
[327295568,1715970639391,-500.0,0.00016438,2]
[327295569,1715970639400,-500.0,0.00016438,2]
[327295570,1715970639410,-500.0,0.00016438,2]
[327295571,1715970639420,-500.0,0.00016438,2]
[327295572,1715970639430,-505.89911409,0.00016438,2]
[327295573,1715970639440,-503.23549711,0.00016438,2]
[327295574,1715970639451,-501.4775317,0.00016438,2]
[327295575,1715970639461,-500.0,0.00016438,2]
[327295576,1715970639472,-503.48828583,0.00016438,2]
[327295577,1715970639483,-187.91517803,0.00016438,2]
[327295578,1715970639494,-170.98823797,0.00016438,2]
[327295579,1715970639504,-506.37290017,0.00016438,2]
[327295580,1715970639514,-622.72419462,0.00016438,2]
[327295581,1715970639524,-500.0,0.00016438,2]
[327295582,1715970639533,-503.24770471,0.00016438,2]
[327295583,1715970639543,-500.0,0.00016438,2]
[327295584,1715970639553,-500.0,0.00016438,2]
[327295585,1715970639563,-500.0,0.00016438,2]
[327295586,1715970639573,-500.0,0.00016438,2]
[327295587,1715970639582,-500.0,0.00016438,2]
[327295588,1715970639592,-500.0,0.00016438,2]
[327295589,1715970639602,-610.64,0.00016438,2]
[327295590,1715970639612,-500.0,0.00016438,2]
[327295591,1715970639621,-501.85975324,0.00016438,2]
[327295592,1715970639631,-503.51167733,0.00016438,2]
[327295593,1715970639641,-500.0,0.00016438,2]
[327295594,1715970639651,-303.35664906,0.00016438,2]
[327295595,1715970639661,-500.0,0.00016438,2]
[327295596,1715970639671,-500.0,0.00016438,2]
[327295597,1715970639681,-220.39546174,0.00016438,2]
[327295598,1715970639691,-500.0,0.00016438,2]
[327295599,1715970639702,-500.0,0.00016438,2]
[327295600,1715970639711,-163.6299445,0.00016438,2]
[327295601,1715970639720,-500.0,0.00016438,2]
[327295602,1715970639730,-500.0,0.00016438,2]
[327295603,1715970639740,-500.0,0.00016438,2]
[327295604,1715970639749,-500.0,0.00016438,2]
[327295605,1715970639759,-504.49246044,0.00016438,2]
[327295606,1715970639769,-500.0,0.00016438,2]
[327295607,1715970639779,-500.0,0.00016438,2]
[327295608,1715970639789,-501.56644249,0.00016438,2]
[327295609,1715970639799,-500.0,0.00016438,2]
[327295610,1715970639810,-500.0,0.00016438,2]
[327295611,1715970639820,-500.0,0.00016438,2]
[327295612,1715970639832,-500.0,0.00016438,2]
[327295613,1715970639843,-500.0,0.00016438,2]
[327295614,1715970639853,-500.0,0.00016438,2]
[327295615,1715970639863,-500.0,0.00016438,2]
[327295616,1715970639874,-500.0,0.00016438,2]
[327295617,1715970639884,-554.8736587,0.00016438,2]
[327295618,1715970639894,-500.0,0.00016438,2]
[327295619,1715970639904,-500.0,0.00016438,2]
[327295620,1715970639915,-500.0,0.00016438,2]
[327295621,1715970639925,-500.0,0.00016438,2]
[327295622,1715970639934,-500.0,0.00016438,2]
[327295623,1715970639944,-500.0,0.00016438,2]
[327295624,1715970639956,-500.0,0.00016438,2]
[327295625,1715970639967,-471.69264885,0.00016438,2]
[327295626,1715970639977,-500.0,0.00016438,2]
[327295627,1715970639987,-500.0,0.00016438,2]
[327295628,1715970639996,-500.0,0.00016438,2]
[327295629,1715970640006,-500.0,0.00016438,2]
[327295630,1715970640016,-500.0,0.00016438,2]
[327295631,1715970640025,-500.0,0.00016438,2]
[327295632,1715970640036,-500.0,0.00016438,2]
[327295633,1715970640046,-500.0,0.00016438,2]
[327295634,1715970640056,-500.0,0.00016438,2]
[327295635,1715970640065,-500.0,0.00016438,2]
[327295636,1715970640075,-500.0,0.00016438,2]
[327295637,1715970640084,-500.0,0.00016438,2]
[327295638,1715970640093,-500.0,0.00016438,2]
[327295639,1715970640103,-500.0,0.00016438,2]
[327295640,1715970640113,-500.0,0.00016438,2]
[327295641,1715970640123,-500.0,0.00016438,2]
[327295644,1715970640132,-500.0,0.00016438,2]
[327295647,1715970640142,-500.0,0.00016438,2]
[327295648,1715970640151,-500.0,0.00016438,2]
[327295649,1715970640162,-1000.0,0.00016438,2]
[327295650,1715970640172,-500.0,0.00016438,2]
[327295654,1715970640310,-505.34706848,0.00016438,2]
[327295656,1715970640321,-507.89263316,0.00016438,2]
[327295658,1715970640332,-500.0,0.00016438,2]
[327295660,1715970640342,-500.0,0.00016438,2]
[327295662,1715970640352,-505.30069691,0.00016438,2]
[327295664,1715970640364,-500.0,0.00016438,2]
[327295666,1715970640374,-500.0,0.00016438,2]
[327295668,1715970640383,-500.0,0.00016438,2]
[327295670,1715970640393,-500.0,0.00016438,2]
[327295672,1715970640402,-500.0,0.00016438,2]
[327295674,1715970640411,-500.0,0.00016438,2]
[327295676,1715970640420,-500.0,0.00016438,2]
[327295678,1715970640430,-500.0,0.00016438,2]
[327295680,1715970640440,-500.0,0.00016438,2]
[327295682,1715970640450,-500.0,0.00016438,2]
[327295684,1715970640460,-500.0,0.00016438,2]
[327295686,1715970640469,-500.0,0.00016438,2]
[327295688,1715970640478,-500.0,0.00016438,2]
[327295690,1715970640488,-263.2975575,0.00016438,2]
[327295692,1715970640497,-500.0,0.00016438,2]
[327295694,1715970640506,-500.0,0.00016438,2]
[327295696,1715970640516,-506.49840294,0.00016438,2]
[327295698,1715970640525,-260.85550723,0.00016438,2]
[327295700,1715970640535,-500.0,0.00016438,2]
[327295702,1715970640544,-500.0,0.00016438,2]
[327295704,1715970640553,-500.0,0.00016438,2]
[327295706,1715970640563,-500.0,0.00016438,2]
[327295708,1715970640575,-500.0,0.00016438,2]
[327295710,1715970640584,-500.0,0.00016438,2]
[327295712,1715970640593,-502.00452264,0.00016438,2]
[327295714,1715970640602,-531.34110359,0.00016438,2]
[327295716,1715970640611,-500.0,0.00016438,2]
[327295717,1715970640620,-500.0,0.00016438,2]
[327295719,1715970640630,-500.0,0.00016438,2]
[327295721,1715970640640,-500.0,0.00016438,2]
[327295723,1715970640649,-500.0,0.00016438,2]
[327295725,1715970640659,-500.0,0.00016438,2]
[327295727,1715970640668,-500.0,0.00016438,2]
[327295729,1715970640677,-500.0,0.00016438,2]
[327295731,1715970640686,-500.0,0.00016438,2]
[327295733,1715970640696,-500.0,0.00016438,2]
[327295735,1715970640706,-500.0,0.00016438,2]
[327295737,1715970640715,-619.94628701,0.00016438,2]
[327295739,1715970640724,-500.0,0.00016438,2]
[327295741,1715970640733,-500.0,0.00016438,2]
[327295742,1715970640742,-530.42059546,0.00016438,2]
[327295744,1715970640753,-500.0,0.00016438,2]
[327295746,1715970640762,-500.0,0.00016438,2]
[327295749,1715970640772,-500.0,0.00016438,2]
[327295751,1715970640781,-505.14416001,0.00016438,2]
[327295754,1715970640790,-517.72763092,0.00016438,2]
[327295757,1715970640800,-500.0,0.00016438,2]
[327295760,1715970640808,-500.0,0.00016438,2]
[327295763,1715970640818,-515.39551987,0.00016438,2]
[327295765,1715970640827,-500.0,0.00016438,2]
[327295767,1715970640837,-500.0,0.00016438,2]
[327295769,1715970640850,-500.0,0.00016438,2]
[327295771,1715970640859,-504.61244209,0.00016438,2]
[327295773,1715970640869,-500.0,0.00016438,2]
[327295775,1715970640879,-500.66826848,0.00016438,2]